[Event "Late-Titled-Tuesday-Blitz-October-24-2023"]
[Site "Chess.com"]
[Date "2023.10.24"]
[Round "1"]
[White "kalxandria"]
[Black "stolencandy13"]
[Result "0-1"]
[WhiteElo "2155"]
[BlackElo "2583"]
[TimeControl "180+1"]
[EndTime "14:05:25 PDT"]
[Termination "stolencandy13 won by resignation"]

1. e4 {[%clk 0:02:57.5]} 1... c6 {[%clk 0:02:59.9]} 2. d4 {[%clk 0:02:56.1]}
2... d5 {[%clk 0:03:00.8]} 3. Nd2 {[%clk 0:02:53.8]} 3... dxe4 {[%clk
0:02:55.5]} 4. Nxe4 {[%clk 0:02:53.2]} 4... Bf5 {[%clk 0:02:55.6]} 5. Ng3 {[%clk
0:02:52.4]} 5... Bg6 {[%clk 0:02:55.8]} 6. h4 {[%clk 0:02:52.5]} 6... h6 {[%clk
0:02:55.8]} 7. f4 {[%clk 0:02:51.1]} 7... e6 {[%clk 0:02:55.7]} 8. Nf3 {[%clk
0:02:50.1]} 8... Bd6 {[%clk 0:02:52.6]} 9. h5 {[%clk 0:02:49.3]} 9... Bh7 {[%clk
0:02:52.5]} 10. Bd3 {[%clk 0:02:48.1]} 10... Bxd3 {[%clk 0:02:51.3]} 11. Qxd3
{[%clk 0:02:47.6]} 11... Nf6 {[%clk 0:02:50.7]} 12. Bd2 {[%clk 0:02:46.7]} 12...
Nbd7 {[%clk 0:02:50]} 13. O-O-O {[%clk 0:02:46.2]} 13... Qc7 {[%clk 0:02:48.9]}
14. Ne5 {[%clk 0:02:45]} 14... Rf8 {[%clk 0:02:21.2]} 15. Rhe1 {[%clk 0:02:35]}
15... O-O-O {[%clk 0:02:20.7]} 16. Qe2 {[%clk 0:02:32.7]} 16... Kb8 {[%clk
0:02:15]} 17. Kb1 {[%clk 0:02:31.4]} 17... c5 {[%clk 0:02:07]} 18. Nxd7+ {[%clk
0:02:28.4]} 18... Rxd7 {[%clk 0:02:04.5]} 19. dxc5 {[%clk 0:02:27.3]} 19... Bxf4
{[%clk 0:01:58.6]} 20. Bxf4 {[%clk 0:02:24.4]} 20... Qxf4 {[%clk 0:01:58.6]} 21.
Rxd7 {[%clk 0:02:22.3]} 21... Nxd7 {[%clk 0:01:59.5]} 22. c6 {[%clk 0:02:19.4]}
22... Nb6 {[%clk 0:01:31.3]} 23. Ne4 {[%clk 0:02:11.1]} 23... bxc6 {[%clk
0:01:30.7]} 24. a4 {[%clk 0:02:02.9]} 24... Rd8 {[%clk 0:01:26.3]} 25. a5 {[%clk
0:02:01.3]} 25... Nd5 {[%clk 0:01:22.5]} 26. Nc5 {[%clk 0:02:00.1]} 26... Ka8
{[%clk 0:01:11.6]} 27. Qa6 {[%clk 0:01:56.9]} 27... Qc7 {[%clk 0:01:11.1]} 28.
Re4 {[%clk 0:01:44]} 28... Rb8 {[%clk 0:01:08.7]} 29. Kc1 {[%clk 0:01:40.2]}
29... Rb5 {[%clk 0:01:04.2]} 30. b4 {[%clk 0:01:37.3]} 30... Nxb4 {[%clk
0:00:57.4]} 31. Rxb4 {[%clk 0:01:24.4]} 31... Rxb4 {[%clk 0:00:53]} 32. Qd3
{[%clk 0:01:12.9]} 32... Qf4+ {[%clk 0:00:49.1]} 0-1

[Event "Late-Titled-Tuesday-Blitz-October-24-2023"]
[Site "Chess.com"]
[Date "2023.10.24"]
[Round "1"]
[White "chesspreceptor"]
[Black "akanga001"]
[Result "1-0"]
[WhiteElo "2555"]
[BlackElo "2046"]
[TimeControl "180+1"]
[EndTime "14:05:31 PDT"]
[Termination "chesspreceptor won by resignation"]

1. d4 {[%clk 0:03:00.9]} 1... d5 {[%clk 0:02:53.6]} 2. Nc3 {[%clk 0:03:01.3]}
2... Bf5 {[%clk 0:02:47.9]} 3. Bf4 {[%clk 0:03:01.3]} 3... e6 {[%clk 0:02:44.9]}
4. Nf3 {[%clk 0:03:01.3]} 4... Bd6 {[%clk 0:02:43.2]} 5. e3 {[%clk 0:02:56.9]}
5... Bxf4 {[%clk 0:02:42]} 6. exf4 {[%clk 0:02:57.8]} 6... Nf6 {[%clk 0:02:39]}
7. Ne5 {[%clk 0:02:55.8]} 7... O-O {[%clk 0:02:38.4]} 8. h4 {[%clk 0:02:53]}
8... h5 {[%clk 0:02:28.1]} 9. Be2 {[%clk 0:02:50.2]} 9... g6 {[%clk 0:02:26.7]}
10. g4 {[%clk 0:02:41.6]} 10... hxg4 {[%clk 0:02:23.3]} 11. Bxg4 {[%clk
0:02:40.3]} 11... Bxg4 {[%clk 0:02:20.7]} 12. Nxg4 {[%clk 0:02:39.7]} 12... Kg7
{[%clk 0:02:18.5]} 13. Qe2 {[%clk 0:02:25.5]} 13... Nc6 {[%clk 0:02:16.5]} 14.
O-O-O {[%clk 0:02:24.3]} 14... Nxg4 {[%clk 0:02:12.7]} 15. Qxg4 {[%clk
0:02:23.8]} 15... Qf6 {[%clk 0:02:13.5]} 16. h5 {[%clk 0:02:18.3]} 16... Nxd4
{[%clk 0:02:05.7]} 17. hxg6 {[%clk 0:02:17.9]} 17... fxg6 {[%clk 0:02:03.7]} 18.
Kb1 {[%clk 0:02:15.7]} 18... Qxf4 {[%clk 0:02:02.6]} 19. Rxd4 {[%clk 0:02:14.3]}
19... Qxg4 {[%clk 0:01:51.7]} 20. Rxg4 {[%clk 0:02:15.2]} 20... Rxf2 {[%clk
0:01:51.9]} 21. Rhg1 {[%clk 0:02:15.5]} 21... Rf6 {[%clk 0:01:50.5]} 22. a4
{[%clk 0:02:14.1]} 22... c6 {[%clk 0:01:50]} 23. a5 {[%clk 0:02:11.8]} 23... e5
{[%clk 0:01:50.1]} 24. Rb4 {[%clk 0:02:11.2]} 24... Rf7 {[%clk 0:01:43.2]} 25.
Na4 {[%clk 0:02:09.9]} 25... Re8 {[%clk 0:01:38.5]} 26. Nc5 {[%clk 0:02:09.3]}
26... Ree7 {[%clk 0:01:38.4]} 27. Kc1 {[%clk 0:01:58.5]} 27... e4 {[%clk
0:01:38]} 28. Kd2 {[%clk 0:01:57.4]} 28... Rf2+ {[%clk 0:01:36.5]} 29. Ke3
{[%clk 0:01:54.1]} 29... Rf3+ {[%clk 0:01:36.1]} 30. Ke2 {[%clk 0:01:50.1]}
30... Rff7 {[%clk 0:01:24.3]} 31. Rf1 {[%clk 0:01:38.4]} 31... Rxf1 {[%clk
0:01:14.6]} 32. Kxf1 {[%clk 0:01:39.3]} 32... b6 {[%clk 0:00:56.4]} 33. axb6
{[%clk 0:01:38.8]} 33... axb6 {[%clk 0:00:53.8]} 34. Rxb6 {[%clk 0:01:39.7]}
34... d4 {[%clk 0:00:52.4]} 35. Rxc6 {[%clk 0:01:36.4]} 35... d3 {[%clk
0:00:52.2]} 36. cxd3 {[%clk 0:01:34.6]} 36... exd3 {[%clk 0:00:52.5]} 37. Nxd3
{[%clk 0:01:35.3]} 37... Rd7 {[%clk 0:00:50.4]} 38. Rxg6+ {[%clk 0:01:32.2]}
38... Kf7 {[%clk 0:00:46.3]} 39. Ne5+ {[%clk 0:01:31.9]} 1-0

[Event "Late-Titled-Tuesday-Blitz-October-24-2023"]
[Site "Chess.com"]
[Date "2023.10.24"]
[Round "1"]
[White "szachmistrz2500"]
[Black "Hasangatin_Ramil"]
[Result "1-0"]
[WhiteElo "2420"]
[BlackElo "2697"]
[TimeControl "180+1"]
[EndTime "14:05:39 PDT"]
[Termination "szachmistrz2500 won on time"]

1. Nf3 {[%clk 0:02:57]} 1... d5 {[%clk 0:02:59.4]} 2. g3 {[%clk 0:02:56.9]} 2...
Nc6 {[%clk 0:02:58.4]} 3. d4 {[%clk 0:02:53.2]} 3... Bf5 {[%clk 0:02:58.1]} 4.
Bg2 {[%clk 0:02:52.9]} 4... Nb4 {[%clk 0:02:57.6]} 5. Na3 {[%clk 0:02:51.1]}
5... e6 {[%clk 0:02:57.9]} 6. O-O {[%clk 0:02:50.3]} 6... Nf6 {[%clk 0:02:57.3]}
7. Nh4 {[%clk 0:02:49.7]} 7... Bg4 {[%clk 0:02:55.4]} 8. h3 {[%clk 0:02:48.1]}
8... Bh5 {[%clk 0:02:55.6]} 9. c3 {[%clk 0:02:46.9]} 9... Nc6 {[%clk 0:02:55]}
10. f4 {[%clk 0:02:41.5]} 10... Bxa3 {[%clk 0:02:52.8]} 11. bxa3 {[%clk
0:02:41]} 11... Ne7 {[%clk 0:02:33.2]} 12. g4 {[%clk 0:02:33.7]} 12... Bg6
{[%clk 0:02:32.7]} 13. Nxg6 {[%clk 0:02:33.3]} 13... hxg6 {[%clk 0:02:29.3]} 14.
a4 {[%clk 0:02:26.1]} 14... Nc8 {[%clk 0:02:24.1]} 15. c4 {[%clk 0:02:17.5]}
15... c6 {[%clk 0:02:20.3]} 16. Rb1 {[%clk 0:02:09.6]} 16... Rb8 {[%clk
0:02:07.9]} 17. cxd5 {[%clk 0:02:05.5]} 17... exd5 {[%clk 0:02:01]} 18. Ba3
{[%clk 0:01:59.5]} 18... Nd6 {[%clk 0:02:00.2]} 19. Qd3 {[%clk 0:01:56.3]} 19...
O-O {[%clk 0:01:51.1]} 20. g5 {[%clk 0:01:50.6]} 20... Nfe4 {[%clk 0:01:50.3]}
21. Bxe4 {[%clk 0:01:50.3]} 21... dxe4 {[%clk 0:01:48.1]} 22. Qd2 {[%clk
0:01:38.6]} 22... Nc4 {[%clk 0:01:45]} 23. Qc3 {[%clk 0:01:33.4]} 23... Nxa3
{[%clk 0:01:44.7]} 24. Qxa3 {[%clk 0:01:34.1]} 24... Qxd4+ {[%clk 0:01:44.3]}
25. e3 {[%clk 0:01:34.6]} 25... Qd3 {[%clk 0:01:42.3]} 26. Qxd3 {[%clk 0:01:31]}
26... exd3 {[%clk 0:01:43.2]} 27. Rfd1 {[%clk 0:01:30.9]} 1-0

[Event "Late-Titled-Tuesday-Blitz-October-24-2023"]
[Site "Chess.com"]
[Date "2023.10.24"]
[Round "1"]
[White "KChor05TTV"]
[Black "Nick12772"]
[Result "1-0"]
[WhiteElo "2671"]
[BlackElo "2370"]
[TimeControl "180+1"]
[EndTime "14:05:45 PDT"]
[Termination "KChor05TTV won by resignation"]

1. e4 {[%clk 0:03:00.9]} 1... e6 {[%clk 0:03:00.1]} 2. d4 {[%clk 0:02:59]} 2...
d5 {[%clk 0:03:01]} 3. Nd2 {[%clk 0:02:59.1]} 3... Nf6 {[%clk 0:03:01.1]} 4. e5
{[%clk 0:02:59.5]} 4... Nfd7 {[%clk 0:03:01.7]} 5. Bd3 {[%clk 0:03:00.1]} 5...
c5 {[%clk 0:03:02.6]} 6. c3 {[%clk 0:03:00.5]} 6... Nc6 {[%clk 0:03:03.5]} 7.
Ngf3 {[%clk 0:03:00.6]} 7... Be7 {[%clk 0:03:02.8]} 8. O-O {[%clk 0:03:00.4]}
8... a5 {[%clk 0:03:03.5]} 9. Re1 {[%clk 0:02:55.5]} 9... cxd4 {[%clk
0:03:02.9]} 10. cxd4 {[%clk 0:02:54.8]} 10... g5 {[%clk 0:03:03.6]} 11. Bb5
{[%clk 0:02:37.3]} 11... g4 {[%clk 0:02:59.9]} 12. b3 {[%clk 0:02:16.3]} 12...
gxf3 {[%clk 0:02:58.6]} 13. Nxf3 {[%clk 0:02:17.2]} 13... Nf8 {[%clk 0:02:47.9]}
14. Qc2 {[%clk 0:02:13.4]} 14... Bd7 {[%clk 0:02:46.6]} 15. Bh6 {[%clk
0:02:11.8]} 15... Ng6 {[%clk 0:02:32.3]} 16. a4 {[%clk 0:02:09.8]} 16... Nb4
{[%clk 0:02:27.9]} 17. Qe2 {[%clk 0:02:04.8]} 17... Bxb5 {[%clk 0:02:26.1]} 18.
axb5 {[%clk 0:02:05.1]} 18... b6 {[%clk 0:02:20.7]} 19. g3 {[%clk 0:01:59.2]}
19... Qd7 {[%clk 0:02:18]} 20. h4 {[%clk 0:01:57.8]} 20... O-O-O {[%clk
0:02:07.7]} 21. h5 {[%clk 0:01:54.1]} 21... Nf8 {[%clk 0:02:06.7]} 22. Ng5
{[%clk 0:01:49.9]} 22... Bxg5 {[%clk 0:02:01.2]} 23. Bxg5 {[%clk 0:01:50.8]}
23... Re8 {[%clk 0:01:59.9]} 24. Bf6 {[%clk 0:01:51.1]} 24... Rg8 {[%clk
0:02:00.1]} 25. Rac1+ {[%clk 0:01:40.7]} 25... Kb7 {[%clk 0:02:00.3]} 26. Qe3
{[%clk 0:01:33]} 26... Rc8 {[%clk 0:01:58.2]} 27. Rxc8 {[%clk 0:01:32.7]} 27...
Qxc8 {[%clk 0:01:59.1]} 28. Rc1 {[%clk 0:01:32.8]} 28... Qb8 {[%clk 0:01:48.2]}
29. Be7 {[%clk 0:01:29]} 29... Qe8 {[%clk 0:01:29.7]} 30. Qc3 {[%clk 0:01:20.7]}
30... Qd7 {[%clk 0:00:57]} 31. Bxb4 {[%clk 0:01:20.3]} 31... axb4 {[%clk
0:00:54.4]} 32. Qxb4 {[%clk 0:01:21.2]} 32... h6 {[%clk 0:00:49.7]} 33. Qa4
{[%clk 0:01:19.5]} 33... Nh7 {[%clk 0:00:47.9]} 34. Qa6+ {[%clk 0:01:19.2]}
34... Kb8 {[%clk 0:00:45.4]} 35. Qxb6+ {[%clk 0:01:20.1]} 35... Qb7 {[%clk
0:00:42.5]} 36. Qd6+ {[%clk 0:01:19.8]} 36... Ka8 {[%clk 0:00:38.6]} 37. Ra1+
{[%clk 0:01:13.5]} 37... Qa7 {[%clk 0:00:38.8]} 38. Rxa7+ {[%clk 0:01:07.3]}
38... Kxa7 {[%clk 0:00:39.7]} 39. Qc7+ {[%clk 0:01:07.3]} 39... Ka8 {[%clk
0:00:39.8]} 40. b6 {[%clk 0:01:08.2]} 1-0

[Event "Late-Titled-Tuesday-Blitz-October-24-2023"]
[Site "Chess.com"]
[Date "2023.10.24"]
[Round "1"]
[White "dedpihto_v_kozhanom_palto"]
[Black "KafkaesqueKnight"]
[Result "1-0"]
[WhiteElo "2634"]
[BlackElo "2316"]
[TimeControl "180+1"]
[EndTime "14:05:53 PDT"]
[Termination "dedpihto_v_kozhanom_palto won by checkmate"]

1. c4 {[%clk 0:03:00.9]} 1... e5 {[%clk 0:03:00]} 2. Nc3 {[%clk 0:02:59.8]} 2...
Nf6 {[%clk 0:03:00.4]} 3. Nf3 {[%clk 0:03:00.4]} 3... Nc6 {[%clk 0:02:58.8]} 4.
e3 {[%clk 0:03:00.7]} 4... Bb4 {[%clk 0:02:53.2]} 5. Qc2 {[%clk 0:03:00.4]} 5...
O-O {[%clk 0:02:52.2]} 6. Nd5 {[%clk 0:03:00.3]} 6... d6 {[%clk 0:02:45.5]} 7.
a3 {[%clk 0:02:58.4]} 7... Ba5 {[%clk 0:02:43]} 8. Bd3 {[%clk 0:02:55.5]} 8...
h6 {[%clk 0:02:37.2]} 9. b4 {[%clk 0:02:55]} 9... Bb6 {[%clk 0:02:28.6]} 10.
Nxf6+ {[%clk 0:02:53]} 10... Qxf6 {[%clk 0:02:27.8]} 11. Bb2 {[%clk 0:02:53.9]}
11... Bg4 {[%clk 0:02:25.8]} 12. Be4 {[%clk 0:02:53.5]} 12... Rad8 {[%clk
0:02:18.6]} 13. h3 {[%clk 0:02:45.3]} 13... Bh5 {[%clk 0:02:18.3]} 14. O-O
{[%clk 0:02:44.5]} 14... Ne7 {[%clk 0:02:16.8]} 15. d4 {[%clk 0:02:35]} 15...
exd4 {[%clk 0:02:11.4]} 16. Nxd4 {[%clk 0:02:35.9]} 16... Bg6 {[%clk 0:01:57.2]}
17. Nf5 {[%clk 0:02:16.5]} 17... Qe6 {[%clk 0:01:37.4]} 18. Nxe7+ {[%clk
0:02:12.4]} 18... Qxe7 {[%clk 0:01:38.3]} 19. Bxg6 {[%clk 0:02:12.5]} 19... fxg6
{[%clk 0:01:38.9]} 20. Qxg6 {[%clk 0:02:13.4]} 20... Rde8 {[%clk 0:01:19.5]} 21.
Rad1 {[%clk 0:02:11.4]} 21... Rf7 {[%clk 0:01:09.3]} 22. Qg3 {[%clk 0:02:00.1]}
22... Ref8 {[%clk 0:01:06.8]} 23. Bd4 {[%clk 0:01:48.5]} 23... c5 {[%clk
0:00:56.2]} 24. bxc5 {[%clk 0:01:45]} 24... dxc5 {[%clk 0:00:57.1]} 25. Be5
{[%clk 0:01:44.4]} 25... Qe6 {[%clk 0:00:56.4]} 26. Rd5 {[%clk 0:01:38.4]} 26...
g5 {[%clk 0:00:36.4]} 27. Rd6 {[%clk 0:01:32.2]} 27... Qxc4 {[%clk 0:00:33.9]}
28. Rxh6 {[%clk 0:01:32.5]} 28... Rf5 {[%clk 0:00:32]} 29. Rg6+ {[%clk
0:01:22.3]} 29... Kh7 {[%clk 0:00:23.2]} 30. Rxg5 {[%clk 0:01:15.6]} 30... Rxg5
{[%clk 0:00:20]} 31. Qxg5 {[%clk 0:01:16.5]} 31... Rf7 {[%clk 0:00:16.8]} 32.
Qh5+ {[%clk 0:01:15.1]} 32... Kg8 {[%clk 0:00:15.5]} 33. Qh8# {[%clk 0:01:16]}
1-0

[Event "Late-Titled-Tuesday-Blitz-October-24-2023"]
[Site "Chess.com"]
[Date "2023.10.24"]
[Round "1"]
[White "iJueles"]
[Black "Nyzhnyk_Illia"]
[Result "0-1"]
[WhiteElo "2481"]
[BlackElo "2846"]
[TimeControl "180+1"]
[EndTime "14:05:56 PDT"]
[Termination "Nyzhnyk_Illia won by resignation"]

1. d4 {[%clk 0:02:58]} 1... d5 {[%clk 0:02:58.2]} 2. c4 {[%clk 0:02:57.5]} 2...
c6 {[%clk 0:02:58.3]} 3. Nf3 {[%clk 0:02:56.2]} 3... Nf6 {[%clk 0:02:58.5]} 4.
Qb3 {[%clk 0:02:56.1]} 4... g6 {[%clk 0:02:57.5]} 5. g3 {[%clk 0:02:55.4]} 5...
Bg7 {[%clk 0:02:57.7]} 6. Bg2 {[%clk 0:02:55.1]} 6... O-O {[%clk 0:02:58.4]} 7.
O-O {[%clk 0:02:55]} 7... Na6 {[%clk 0:02:50.9]} 8. Bf4 {[%clk 0:02:47.8]} 8...
dxc4 {[%clk 0:02:48.6]} 9. Qxc4 {[%clk 0:02:47.5]} 9... Be6 {[%clk 0:02:49.4]}
10. Qc1 {[%clk 0:02:36.3]} 10... Rc8 {[%clk 0:02:48.5]} 11. Nc3 {[%clk
0:02:35.8]} 11... c5 {[%clk 0:02:48]} 12. Rd1 {[%clk 0:02:34.7]} 12... Nd5
{[%clk 0:02:42.3]} 13. Bh6 {[%clk 0:02:31]} 13... Nxc3 {[%clk 0:02:37.5]} 14.
bxc3 {[%clk 0:02:27.4]} 14... Qa5 {[%clk 0:02:14.2]} 15. Bxg7 {[%clk 0:02:26.4]}
15... Kxg7 {[%clk 0:02:15.1]} 16. Qb2 {[%clk 0:02:22.1]} 16... cxd4 {[%clk
0:02:10]} 17. cxd4 {[%clk 0:02:18.1]} 17... Bd5 {[%clk 0:02:09.3]} 18. Ne5
{[%clk 0:01:47.2]} 18... f6 {[%clk 0:02:06.9]} 19. Nd3 {[%clk 0:01:41]} 19... b6
{[%clk 0:02:02.1]} 20. e4 {[%clk 0:01:34.6]} 20... Bf7 {[%clk 0:02:02.2]} 21. e5
{[%clk 0:01:30.2]} 21... Rfd8 {[%clk 0:01:58.5]} 22. Nf4 {[%clk 0:01:25.4]}
22... Nb4 {[%clk 0:01:52.7]} 23. e6 {[%clk 0:00:56.3]} 23... Be8 {[%clk
0:01:50.2]} 24. Rd2 {[%clk 0:00:54.7]} 24... g5 {[%clk 0:01:48.4]} 25. Ne2
{[%clk 0:00:52.1]} 25... Nd5 {[%clk 0:01:42.9]} 26. Rad1 {[%clk 0:00:48.3]}
26... Bg6 {[%clk 0:01:43]} 27. Bxd5 {[%clk 0:00:46.1]} 27... Qxd5 {[%clk
0:01:41.9]} 28. Qb3 {[%clk 0:00:43.5]} 28... Qxb3 {[%clk 0:01:27.3]} 29. axb3
{[%clk 0:00:44.4]} 29... Rd5 {[%clk 0:01:27.6]} 30. f4 {[%clk 0:00:41.8]} 30...
Bf5 {[%clk 0:01:27.1]} 31. fxg5 {[%clk 0:00:41.5]} 31... fxg5 {[%clk 0:01:28]}
32. Ra2 {[%clk 0:00:41]} 32... a5 {[%clk 0:01:28]} 33. b4 {[%clk 0:00:40.2]}
33... axb4 {[%clk 0:01:27.7]} 34. Rb2 {[%clk 0:00:40]} 34... Rc4 {[%clk
0:01:26]} 35. Kf2 {[%clk 0:00:40.3]} 35... Bxe6 {[%clk 0:01:22.2]} 36. Rdb1
{[%clk 0:00:40.4]} 36... Rb5 {[%clk 0:01:22.9]} 37. Ke3 {[%clk 0:00:40.3]} 37...
Bf5 {[%clk 0:01:23.4]} 38. Rc1 {[%clk 0:00:39.2]} 38... Rxc1 {[%clk 0:01:19.7]}
39. Nxc1 {[%clk 0:00:40.1]} 39... Be6 {[%clk 0:01:20.1]} 40. Nd3 {[%clk
0:00:40.3]} 40... b3 {[%clk 0:01:20]} 41. Nc1 {[%clk 0:00:38]} 41... Bd5 {[%clk
0:01:18.7]} 42. Kd3 {[%clk 0:00:38.2]} 42... Ra5 {[%clk 0:01:18.9]} 43. Nxb3
{[%clk 0:00:38.2]} 43... Rb5 {[%clk 0:01:19.1]} 44. Kc3 {[%clk 0:00:38.3]} 44...
Rxb3+ {[%clk 0:01:19.5]} 45. Rxb3 {[%clk 0:00:38.9]} 45... Bxb3 {[%clk
0:01:20.4]} 46. Kxb3 {[%clk 0:00:39.8]} 46... Kf6 {[%clk 0:01:20.4]} 47. Kb4
{[%clk 0:00:39.2]} 47... Ke6 {[%clk 0:01:20.9]} 0-1

[Event "Late-Titled-Tuesday-Blitz-October-24-2023"]
[Site "Chess.com"]
[Date "2023.10.24"]
[Round "1"]
[White "Iball95"]
[Black "2346PL"]
[Result "1-0"]
[WhiteElo "2840"]
[BlackElo "2479"]
[TimeControl "180+1"]
[EndTime "14:05:56 PDT"]
[Termination "Iball95 won by resignation"]

1. e4 {[%clk 0:02:59.5]} 1... d6 {[%clk 0:03:00.4]} 2. d4 {[%clk 0:02:59.5]}
2... Nf6 {[%clk 0:03:00.8]} 3. Nc3 {[%clk 0:03:00]} 3... e5 {[%clk 0:03:01.4]}
4. dxe5 {[%clk 0:02:59.1]} 4... dxe5 {[%clk 0:03:01]} 5. Qxd8+ {[%clk 0:03:00]}
5... Kxd8 {[%clk 0:03:01.9]} 6. Bg5 {[%clk 0:02:59]} 6... Be6 {[%clk 0:03:01.6]}
7. g3 {[%clk 0:02:58.7]} 7... Nd7 {[%clk 0:02:59.1]} 8. f4 {[%clk 0:02:55.2]}
8... exf4 {[%clk 0:02:55.7]} 9. gxf4 {[%clk 0:02:56.1]} 9... Bg4 {[%clk
0:02:51.5]} 10. e5 {[%clk 0:02:44.2]} 10... h6 {[%clk 0:02:51.1]} 11. Bh4 {[%clk
0:02:44.5]} 11... g5 {[%clk 0:02:49.6]} 12. fxg5 {[%clk 0:02:44.9]} 12... Nh5
{[%clk 0:02:46.5]} 13. g6+ {[%clk 0:01:58.4]} 13... Kc8 {[%clk 0:02:46.4]} 14.
gxf7 {[%clk 0:01:56.4]} 14... Nxe5 {[%clk 0:02:45.9]} 15. h3 {[%clk 0:01:39.4]}
15... Bf5 {[%clk 0:02:05.6]} 16. O-O-O {[%clk 0:01:32.9]} 16... Nxf7 {[%clk
0:01:56.4]} 17. Bc4 {[%clk 0:01:32.7]} 17... Nd6 {[%clk 0:01:56]} 18. Bd5 {[%clk
0:01:30.6]} 18... Bg7 {[%clk 0:01:44.6]} 19. Nf3 {[%clk 0:01:19]} 19... Nf4
{[%clk 0:01:41]} 20. Bb3 {[%clk 0:01:15.2]} 20... b6 {[%clk 0:01:34.2]} 21. Nd4
{[%clk 0:01:01.5]} 21... Kb7 {[%clk 0:01:28]} 22. Bg3 {[%clk 0:00:56.9]} 22...
Nh5 {[%clk 0:01:17.2]} 23. Bxd6 {[%clk 0:00:43.5]} 23... Bxd4 {[%clk 0:01:17.2]}
24. Rxd4 {[%clk 0:00:42.4]} 24... cxd6 {[%clk 0:01:16.6]} 25. Bd5+ {[%clk
0:00:43]} 25... Kc7 {[%clk 0:01:16.1]} 26. Bxa8 {[%clk 0:00:43.9]} 26... Rxa8
{[%clk 0:01:16.1]} 27. Rd5 {[%clk 0:00:36.6]} 27... Ng3 {[%clk 0:01:04.1]} 28.
Rg1 {[%clk 0:00:35.6]} 28... Rg8 {[%clk 0:00:57.1]} 29. Rxf5 {[%clk 0:00:34.8]}
1-0

[Event "Late-Titled-Tuesday-Blitz-October-24-2023"]
[Site "Chess.com"]
[Date "2023.10.24"]
[Round "1"]
[White "mishanick"]
[Black "venturov"]
[Result "1-0"]
[WhiteElo "3061"]
[BlackElo "2520"]
[TimeControl "180+1"]
[EndTime "14:05:59 PDT"]
[Termination "mishanick won by checkmate"]

1. d4 {[%clk 0:03:00.9]} 1... Nf6 {[%clk 0:02:58.2]} 2. c4 {[%clk 0:03:01.3]}
2... d6 {[%clk 0:02:58.5]} 3. Nc3 {[%clk 0:03:01.1]} 3... Nbd7 {[%clk 0:02:59]}
4. Nf3 {[%clk 0:03:00.7]} 4... g6 {[%clk 0:02:59.4]} 5. e4 {[%clk 0:03:00.3]}
5... e5 {[%clk 0:02:59.8]} 6. Be2 {[%clk 0:03:00.3]} 6... Bg7 {[%clk 0:03:00]}
7. O-O {[%clk 0:03:00]} 7... O-O {[%clk 0:03:00.5]} 8. Be3 {[%clk 0:03:00.3]}
8... Re8 {[%clk 0:03:00.6]} 9. d5 {[%clk 0:03:00.7]} 9... Nh5 {[%clk 0:03:01.1]}
10. g3 {[%clk 0:02:59.7]} 10... Bf8 {[%clk 0:03:01.7]} 11. Ne1 {[%clk
0:02:56.7]} 11... Ng7 {[%clk 0:03:01.5]} 12. Nd3 {[%clk 0:02:57.2]} 12... Be7
{[%clk 0:03:01.7]} 13. Qd2 {[%clk 0:02:56.5]} 13... f5 {[%clk 0:03:01.5]} 14. f3
{[%clk 0:02:55.6]} 14... b6 {[%clk 0:02:53.7]} 15. Rae1 {[%clk 0:02:39.6]} 15...
a5 {[%clk 0:02:53.5]} 16. Bd1 {[%clk 0:02:39.6]} 16... Nc5 {[%clk 0:02:34.2]}
17. Nxc5 {[%clk 0:02:23.9]} 17... bxc5 {[%clk 0:02:34.4]} 18. f4 {[%clk
0:02:24.4]} 18... Bf6 {[%clk 0:02:07.7]} 19. Ba4 {[%clk 0:02:19.1]} 19... Bd7
{[%clk 0:01:57.8]} 20. fxe5 {[%clk 0:02:18]} 20... Bxe5 {[%clk 0:01:57.4]} 21.
Bg5 {[%clk 0:02:18.4]} 21... Qc8 {[%clk 0:01:50.5]} 22. Bb5 {[%clk 0:01:32.8]}
22... a4 {[%clk 0:01:40.1]} 23. exf5 {[%clk 0:01:28.7]} 23... Nxf5 {[%clk
0:01:39.1]} 24. Ne4 {[%clk 0:01:29]} 24... Bxb5 {[%clk 0:01:09]} 25. cxb5 {[%clk
0:01:28.1]} 25... Qd7 {[%clk 0:00:57.7]} 26. Bf6 {[%clk 0:01:22.9]} 26... Qxb5
{[%clk 0:00:46.1]} 27. g4 {[%clk 0:01:22.2]} 27... Nd4 {[%clk 0:00:36.8]} 28.
Qh6 {[%clk 0:01:20.4]} 28... Re7 {[%clk 0:00:03.5]} 29. Bxe7 {[%clk 0:01:16.5]}
29... Ne2+ {[%clk 0:00:03.9]} 30. Rxe2 {[%clk 0:01:16.3]} 30... Qxe2 {[%clk
0:00:04.8]} 31. Rf8+ {[%clk 0:01:16.4]} 31... Rxf8 {[%clk 0:00:04]} 32. Qxf8#
{[%clk 0:01:17.3]} 1-0

[Event "Late-Titled-Tuesday-Blitz-October-24-2023"]
[Site "Chess.com"]
[Date "2023.10.24"]
[Round "1"]
[White "Darko-Dimitrijevic"]
[Black "The_Sherman_Variation"]
[Result "0-1"]
[WhiteElo "2130"]
[BlackElo "2564"]
[TimeControl "180+1"]
[EndTime "14:06:04 PDT"]
[Termination "The_Sherman_Variation won by resignation"]

1. e4 {[%clk 0:02:58.2]} 1... e6 {[%clk 0:02:59.9]} 2. d4 {[%clk 0:02:57.4]}
2... d5 {[%clk 0:03:00.8]} 3. exd5 {[%clk 0:02:57.6]} 3... exd5 {[%clk
0:03:01.7]} 4. Bd3 {[%clk 0:02:57.2]} 4... Nf6 {[%clk 0:03:01.6]} 5. Nf3 {[%clk
0:02:56.5]} 5... c5 {[%clk 0:03:02]} 6. dxc5 {[%clk 0:02:55.1]} 6... Bxc5 {[%clk
0:03:01.6]} 7. O-O {[%clk 0:02:54.7]} 7... O-O {[%clk 0:03:01.7]} 8. c3 {[%clk
0:02:54.5]} 8... Nc6 {[%clk 0:03:01.7]} 9. Bg5 {[%clk 0:02:52]} 9... h6 {[%clk
0:03:01]} 10. Bxf6 {[%clk 0:02:47.2]} 10... Qxf6 {[%clk 0:03:01.9]} 11. Nbd2
{[%clk 0:02:46.8]} 11... Bg4 {[%clk 0:03:01.8]} 12. h3 {[%clk 0:02:46.3]} 12...
Bh5 {[%clk 0:03:01.2]} 13. Qb3 {[%clk 0:02:38.9]} 13... Bb6 {[%clk 0:02:58]} 14.
Qxd5 {[%clk 0:02:25.4]} 14... Bxf3 {[%clk 0:02:56.4]} 15. Qxf3 {[%clk
0:02:23.5]} 15... Qd8 {[%clk 0:02:38.4]} 16. Nc4 {[%clk 0:02:19.2]} 16... Bc7
{[%clk 0:02:34.9]} 17. Rad1 {[%clk 0:02:17.5]} 17... Qg5 {[%clk 0:02:28.1]} 18.
Be4 {[%clk 0:02:11.5]} 18... Rac8 {[%clk 0:02:12.7]} 19. Bxc6 {[%clk 0:02:05.6]}
19... bxc6 {[%clk 0:02:13.6]} 20. Rfe1 {[%clk 0:02:02.9]} 20... Bb8 {[%clk
0:01:57.4]} 21. Nd6 {[%clk 0:01:53.3]} 21... Rcd8 {[%clk 0:01:43.3]} 22. Ne4
{[%clk 0:01:34.1]} 22... Qb5 {[%clk 0:01:40.1]} 23. b3 {[%clk 0:01:16.8]} 23...
Qa5 {[%clk 0:01:33.4]} 24. Qe2 {[%clk 0:00:53.2]} 24... Kh8 {[%clk 0:01:19.7]}
25. Qc4 {[%clk 0:00:51.8]} 25... Rxd1 {[%clk 0:01:11.7]} 26. Rxd1 {[%clk
0:00:51.1]} 26... Qxa2 {[%clk 0:01:12.3]} 27. Nc5 {[%clk 0:00:46.6]} 27... Qc2
{[%clk 0:01:01.5]} 28. Qd3 {[%clk 0:00:43.9]} 28... Qb2 {[%clk 0:00:56.1]} 29.
Rb1 {[%clk 0:00:35.7]} 29... Qa3 {[%clk 0:00:55]} 30. Re1 {[%clk 0:00:29.8]}
30... Qxc5 {[%clk 0:00:53.3]} 0-1